Cogmind - Beta 9 @@@ ROGUE MODE // 2019.10.28 @ 19:31:17 Player: Falconhoof Result: Destroyed by Y-45 Defender with Heavy Assault Rifle Performance ------------- Evolutions (2) 1000 Regions Visited (5) 1000 Robots Destroyed (21) 105 Value Destroyed (465) 465 Prototype IDs (3) 60 Alien Tech Used (0) 0 Bonus (0) 0 TOTAL SCORE: 2630 Bonus ------- None Cogmind --------- Core Integrity 0/550 Matter 151/300 Energy 99/100 System Corruption 0% Temperature Cool (9) Location -8/Storage Parts ------- Power (2) Propulsion (4) Utility (3) Weapon (2) Inventory (4) Armored Treads Heat Sink Minigun Improved Datajack Peak State ------------ Power Light Ion Engine Propulsion Flight Unit Flight Unit Flight Unit Utility Small Storage Unit Weapon Small Laser Minigun Inventory Ion Engine Light Ion Engine Compact Wheel Heat Sink Light Armor Plating Rocket Launcher [Rating: 9] Favorites ----------- Power Light Ion Engine Engine Light Ion Engine Propulsion Flight Unit Treads Armored Treads Wheel Wheel Flight Unit Flight Unit Utility Small Storage Unit Device Improved Terrain Scanner Storage Small Storage Unit Protection Light Armor Plating Weapon Small Laser Energy Gun Small Laser Energy Cannon Advanced Beam Cannon Ballistic Gun Minigun Launcher Rocket Launcher Special Melee Weapon Improved Datajack Build | -11 -10 -9 -9 -8 -8 ------- Run | Scr Mat Mat Min Mat Sto Slots Evolved 4 | . . 2 . 2 . Power 1 | . . . . 1 . Propulsion 2 | . . 1 . 1 . Utility 1 | . . 1 . . . Weapon . | . . . . . . Parts Attached 36 | 7 4 9 5 3 8 Power 7 | 1 1 2 1 1 1 Engine 7 | 1 1 2 1 1 1 Core . | . . . . . . Reactor . | . . . . . . Propulsion 10 | 2 3 1 1 1 2 Treads 1 | . . . . . 1 Leg . | . . . . . . Wheel 2 | 2 . . . . . Hover . | . . . . . . Flight 7 | . 3 1 1 1 1 Utility 5 | 2 . 2 1 . . Device 3 | 1 . 1 1 . . Storage 1 | 1 . . . . . Processor . | . . . . . . Hackware . | . . . . . . Protection 1 | . . 1 . . . Artifact . | . . . . . . Weapon 14 | 2 . 4 2 1 5 Energy Gun 4 | 2 . 2 . . . Energy Cannon 3 | . . 1 1 . 1 Ballistic Gun 3 | . . 1 . . 2 Ballistic Cannon . | . . . . . . Launcher 3 | . . . 1 1 1 Special Weapon . | . . . . . . Impact Weapon . | . . . . . . Slashing Weapon . | . . . . . . Piercing Weapon . | . . . . . . Special Melee Weapon 1 | . . . . . 1 Unidentified Prototypes 1 | . . 1 . . . Parts Lost 12 | . 2 1 3 1 5 Power 3 | . 1 . 1 . 1 Propulsion 6 | . 1 1 2 . 2 Utility 1 | . . . . . 1 Weapon 2 | . . . . 1 1 Highest Loss Streak 4 | . 2 1 3 4 4 Average Slot Usage (%) 56 | . 79 71 69 30 27 Engine 9 | . 14 11 11 3 5 Wheel 1 | . 6 . . . . Flight 20 | . 20 31 26 13 10 Device 1 | . 4 . 4 . . Storage 9 | . 14 11 11 9 5 Energy Gun 9 | . 20 11 11 3 . Energy Cannon 1 | . . 3 4 . . Naked Turns 18 | . . . . . 18 Heaviest Build 12 | 10 10 12 12 7 9 Greatest Support 26 | 26 26 12 13 9 9 Greatest Overweight (x) 3 | . 3 . 1 . 1 Average Overweight (x) . | . . . . . . Largest Inventory Capacity 6 | 6 6 6 6 6 6 Average Capacity 5 | 5 6 6 6 6 5 Most Carried 6 | 5 6 6 6 6 6 Average Carried 4 | 2 5 5 5 5 4 Final Capacity 4 | . . . . . 4 Final Carried 4 | . . . . . 4 Class Distribution -------------------- 79% | Mutant 20% | Scavenger-Mutant Dominant Class ---------------- Mutant | -10/Materials Scavenger-Mutant | -9/Materials Mutant | -9/Mines Mutant | -8/Materials Mutant | -8/Storage Resources | -11 -10 -9 -9 -8 -8 ----------- Run | Scr Mat Mat Min Mat Sto Matter Collected 569 | 270 20 31 141 . 107 Remotely . | . . . . . . Salvage Created 502 | 104 48 31 57 11 251 Parts 33 | 7 5 1 2 6 12 Haulers Intercepted 2 | . . . . . 2 Recyclers Shooed 1 | . . . . . 1 Parts Field Recycled . | . . . . . . Retrieved Matter . | . . . . . . Parts Self-Destructed . | . . . . . . Prevented . | . . . . . . Kills | -11 -10 -9 -9 -8 -8 ------- Run | Scr Mat Mat Min Mat Sto Combat Hostiles Destroyed 15 | . 3 1 3 3 5 Guns 5 | . 3 . 1 . 1 Cannons 1 | . . 1 . . . AOE 9 | . . . 2 3 4 Classes Destroyed 9 | 2 1 1 1 . 4 Worker 2 | . . . . . 2 Tunneler 1 | 1 . . . . . Hauler 2 | . . . . . 2 Recycler 1 | 1 . . . . . Swarmer 6 | . 3 . . 3 . Grunt 6 | . . 1 2 . 3 Sentry 1 | . . . . . 1 Hunter 1 | . . . . . 1 Assembled 1 | . . . 1 . . Best Kill Streak 7 | 2 3 1 2 3 7 Combat Bots Only 5 | . 3 1 2 3 5 Max Kills in Single Turn 3 | 1 2 1 2 2 3 Gunslinging 1 | . 1 . . . . Exploded 3 | . . . 2 2 3 Melee . | . . . . . . Uniques/NPCs Destroyed . | . . . . . . Combat | -11 -10 -9 -9 -8 -8 -------- Run | Scr Mat Mat Min Mat Sto Damage Taken 1630 | . 185 90 191 166 998 Core 657 | . 35 33 37 84 468 Absorbed by Shields . | . . . . . . Core Remaining (%) 89 | 100 86 . 82 . . Volleys Fired 41 | 4 5 9 4 2 17 Largest 2 | 2 2 2 2 2 2 Hottest 108 | 80 80 108 100 73 60 Shots Fired 67 | 8 10 16 5 3 25 Gun 44 | 8 10 9 2 1 14 Cannon 11 | . . 7 1 . 3 Launcher 12 | . . . 2 2 8 Special . | . . . . . . Kinetic 14 | . . . . . 14 Thermal 41 | 8 10 16 3 1 3 Explosive 12 | . . . 2 2 8 Electromagnetic . | . . . . . . Robot Hit Streak 10 | 4 3 4 2 1 10 Robot Miss Streak 4 | 2 3 4 1 1 3 Penetration Max . | . . . . . . Secondary Targets 1 | . 1 . . . . Max Gunslinging Chain 1 | . 1 . . . . Shots Hit Robots 40 | 5 5 9 3 1 17 Core Hits 41 | 3 3 1 5 6 23 Critical Hits . | . . . . . . Critical Kills . | . . . . . . Critical Parts Destroyed . | . . . . . . Melee Attacks . | . . . . . . Impact . | . . . . . . Slashing . | . . . . . . Piercing . | . . . . . . Sneak Attacks . | . . . . . . Combat Hostiles . | . . . . . . Follow-up Attacks . | . . . . . . Damage Inflicted 1601 | 61 53 167 190 192 938 Guns 391 | 61 53 63 21 . 193 Cannons 173 | . . 104 18 . 51 Explosions 1037 | . . . 151 192 694 Melee . | . . . . . . Ramming . | . . . . . . Kinetic 193 | . . . . . 193 Thermal 371 | 61 53 167 39 . 51 Explosive 1037 | . . . 151 192 694 Electromagnetic . | . . . . . . Impact . | . . . . . . Slashing . | . . . . . . Piercing . | . . . . . . Highest Corruption 6 | . . . 6 . . Average Corruption 3 | . . . 3 . . Corruption Purged . | . . . . . . Overload Shots . | . . . . . . Overflow Damage 6 | . . . . . 6 Projectiles . | . . . . . . Explosions 6 | . . . . . 6 Melee . | . . . . . . Knockbacks . | . . . . . . Impact . | . . . . . . Kinetic . | . . . . . . Secondary . | . . . . . . Self-Inflicted Damage 60 | . . . . . 60 Shots 2 | . . . . . 2 Rammed . | . . . . . . Targets Rammed . | . . . . . . Kicked . | . . . . . . Crushed . | . . . . . . Highest Temperature 212 | 54 90 212 12 . 49 Average Temperature 49 | 25 46 82 9 . 14 Received Heat Transfer 521 | . 54 33 38 45 351 Effects 1 | . . 1 . . . Interference 1 | . . 1 . . . Siege Activations . | . . . . . . Robots Corrupted . | . . . . . . Combat Hostiles . | . . . . . . Parts Fried . | . . . . . . Impact Corruptions . | . . . . . . Robots Melted . | . . . . . . Combat Hostiles . | . . . . . . Parts Melted 2 | 2 . . . . . Heat Transferred 808 | 150 125 335 87 . 111 Parts Sabotaged . | . . . . . . Parts Stolen . | . . . . . . Parts Stripped . | . . . . . . Power Chain Reactions . | . . . . . . Missiles Intercepted . | . . . . . . Alert | -11 -10 -9 -9 -8 -8 ------- Run | Scr Mat Mat Min Mat Sto Peak Influence 326 | 10 92 133 101 164 326 Average Influence 85 | 4 67 78 93 110 138 Maximum Alert Level 1 | . . . . . 1 Low Security (%) 95 | . . . . . . Level 1 4 | . . . . . . Level 2 . | . . . . . . Level 3 . | . . . . . . Level 4 . | . . . . . . Level 5 . | . . . . . . High Security . | . . . . . . Max Security . | . . . . . . Squads Dispatched 4 | . 1 . . 2 1 Investigation 2 | . 1 . . 1 . Extermination . | . . . . . . Reinforcement 2 | . . . . 1 1 Assault . | . . . . . . Garrison . | . . . . . . Intercept . | . . . . . . Construction Impeded . | . . . . . . Haulers Reinforced . | . . . . . . Stealth | -11 -10 -9 -9 -8 -8 --------- Run | Scr Mat Mat Min Mat Sto Distress Signals 3 | . . 1 . 1 1 Communications Jammed . | . . . . . . Distress Signals . | . . . . . . Times Spotted 66 | . 9 11 16 16 14 Peak Tracking Total 14 | . 6 7 14 12 13 Tactical Retreats 2 | . . . . 2 . Traps | -11 -10 -9 -9 -8 -8 ------- Run | Scr Mat Mat Min Mat Sto Traps Triggered . | . . . . . . Indirectly . | . . . . . . Trap Hack Attempts . | . . . . . . Triggered . | . . . . . . Disarmed 3 | . . . . . 3 Reprogrammed . | . . . . . . Reused . | . . . . . . Traps Extracted . | . . . . . . Installed . | . . . . . . Triggered . | . . . . . . Machines | -11 -10 -9 -9 -8 -8 ---------- Run | Scr Mat Mat Min Mat Sto Machines Disabled 3 | . . 1 . . 2 Max in Single Turn 2 | . . 1 . . 2 Machines Sabotaged . | . . . . . . Garrisons Compromised . | . . . . . . Overloaded Fab Kills . | . . . . . . Fab Network Shutdowns . | . . . . . . Hacking | -11 -10 -9 -9 -8 -8 --------- Run | Scr Mat Mat Min Mat Sto Machines Accessed 5 | . 1 1 . 1 2 Terminals 4 | . 1 1 . 1 1 Fabricators . | . . . . . . Repair Stations 1 | . . . . . 1 Recycling Units . | . . . . . . Scanalyzers . | . . . . . . Garrison Access . | . . . . . . Total Hacks 17 | . 3 2 . 3 9 Successful 11 | . 2 1 . 2 6 Failed 6 | . 1 1 . 1 3 Catastrophic 1 | . . 1 . . . Database Lockouts . | . . . . . . Manual . | . . . . . . Terminals 14 | . 3 2 . 3 6 Fabricators . | . . . . . . Repair Stations 3 | . . . . . 3 Recycling Units . | . . . . . . Scanalyzers . | . . . . . . Garrison Access . | . . . . . . Terminal Hacks 9 | . 2 1 . 2 4 Record 2 | . . . . 2 . Prototype ID Bank 1 | . . . . . 1 Locate Traps 3 | . 1 1 . . 1 Disarm Traps 1 | . . . . . 1 Surveillance Status 1 | . 1 . . . . Hauler Manifests 1 | . . . . . 1 Fabricator Hacks . | . . . . . . Repair Station Hacks 2 | . . . . . 2 Scan Component 1 | . . . . . 1 Repair 1 | . . . . . 1 Recycling Unit Hacks . | . . . . . . Scanalyzer . | . . . . . . Garrison Access Hacks . | . . . . . . Unauthorized Hacks . | . . . . . . Terminals . | . . . . . . Fabricators . | . . . . . . Repair Stations . | . . . . . . Recycling Units . | . . . . . . Scanalyzers . | . . . . . . Garrison Access . | . . . . . . Data Cores Recovered . | . . . . . . Used . | . . . . . . Hacking Detections 5 | . 1 1 . 1 2 Full Trace Events 2 | . 1 . . 1 . Feedback Events . | . . . . . . Feedback Blocked . | . . . . . . Robot Schematics Acquired . | . . . . . . Robots Built . | . . . . . . Matter . | . . . . . . Time . | . . . . . . Total Robot Build Rating . | . . . . . . Part Schematics Acquired . | . . . . . . Parts Built . | . . . . . . Matter . | . . . . . . Time . | . . . . . . Total Part Build Rating . | . . . . . . Parts Repaired 1 | . . . . . 1 Time 32 | . . . . . 32 Parts Recycled . | . . . . . . Recycled Matter . | . . . . . . Retrieved Matter . | . . . . . . Retrieved Components . | . . . . . . Parts Scanalyzed . | . . . . . . Part Schematics Acquired . | . . . . . . Parts Damaged . | . . . . . . Bothacking | -11 -10 -9 -9 -8 -8 ------------ Run | Scr Mat Mat Min Mat Sto Used RIF Installer . | . . . . . . Robots Hacked . | . . . . . . Non-combat . | . . . . . . Combat . | . . . . . . Robot Hacks Applied . | . . . . . . Relay Couplers Released . | . . . . . . Robots Rewired . | . . . . . . Allies Hacked . | . . . . . . Hacks Repelled . | . . . . . . Allies | -11 -10 -9 -9 -8 -8 -------- Run | Scr Mat Mat Min Mat Sto Total Allies . | . . . . . . Largest Group . | . . . . . . Highest-Rated Group . | . . . . . . Highest-Rated Ally . | . . . . . . Total Orders . | . . . . . . Ally Attacks . | . . . . . . Total Damage . | . . . . . . Kills . | . . . . . . Allies Corrupted . | . . . . . . Allies Melted . | . . . . . . Intel | -11 -10 -9 -9 -8 -8 ------- Run | Scr Mat Mat Min Mat Sto Robot Analysis Total . | . . . . . . Derelict Logs Recovered 1 | . . . 1 . . Drone Launches . | . . . . . . Drone Recoveries . | . . . . . . Exploration | -11 -10 -9 -9 -8 -8 ------------- Run | Scr Mat Mat Min Mat Sto Turns Passed 695 | 95 136 140 93 60 171 Spaces Moved 943 | 82 185 185 150 128 213 Core 52 | 15 2 . . . 35 Treads . | . . . . . . Legs . | . . . . . . Wheels 83 | 67 16 . . . . Hover . | . . . . . . Flight 808 | . 167 185 150 128 178 Fastest Speed 34 | 50 37 34 34 37 37 Average Speed 44 | 82 50 34 37 38 40 Slowest Speed 200 | 90 200 37 120 40 120 Overloaded Moves . | . . . . . . Propulsion Burnouts . | . . . . . . Robots Hopped 4 | . . 3 . . 1 Cave-ins Triggered . | . . . . . . Exploration Rate (%) 28 | 5 26 27 52 22 37 Regions Visited 5 Branch Regions 2 Pre-discovered Areas . | . . . . . . Known Exits Taken . | . . . . . . Unknown Exits Taken 5 | 1 1 1 1 1 . Scrap Searched 2 | . . . 2 . . Spaces Dug . | . . . . . . Terrain Destroyed 72 | . . . 8 15 49 Melee . | . . . . . . Projectile . | . . . . . . AOE 72 | . . . 8 15 49 Actions | -11 -10 -9 -9 -8 -8 --------- Run | Scr Mat Mat Min Mat Sto Total 1156 | 97 219 244 184 135 277 Wait 95 | . 13 30 18 . 34 Move 930 | 81 184 178 149 127 211 Hop 4 | . . 3 . . 1 Pick Up 17 | 5 5 3 3 1 . Fast Attach 19 | 7 2 6 1 1 2 Attach 17 | . 2 3 4 2 6 Detach 14 | . 1 5 2 2 4 Swap . | . . . . . . Drop 19 | . 7 7 3 . 2 Fire 41 | 4 5 9 4 2 17 Melee . | . . . . . . Ram . | . . . . . . Kick . | . . . . . . Crush . | . . . . . . Escape Stasis . | . . . . . . Rewire . | . . . . . . Trap . | . . . . . . Miscellaneous . | . . . . . . Route ------- -11/Scrapyard -10/Materials -9/Materials -9/Mines -8/Materials -8/Storage History --------- Turn | Location | Event 10 | -11/Scrapyard | Discovered new exit (range 15) 96 | -11/Scrapyard | Entered Materials 231 | -10/Materials | Discovered new exit (range 4) 232 | -10/Materials | Entered another Materials area 232 | -9/Materials | Evolved 2 slots: Propulsion x1, Utility x1 369 | -9/Materials | Discovered new exit (range 8) 372 | -9/Materials | Entered Mines 392 | -9/Mines | Learned Materials security intel 442 | -9/Mines | Assembled infested the area 447 | -9/Mines | Assisted by a Guerilla fighting off Assembled 449 | -9/Mines | Discovered new exit (range 9) 465 | -9/Mines | Entered Materials 465 | -8/Materials | Evolved 2 slots: Power x1, Propulsion x1 518 | -8/Materials | Lost 4 parts (1p2n1w) 520 | -8/Materials | Discovered new exit (range 14) 525 | -8/Materials | Entered Storage 572 | -8/Storage | Repaired VTOL Module 651 | -8/Storage | Build established: Mutant 662 | -8/Storage | Core integrity fell below 50% 681 | -8/Storage | Lost 4 parts (1p2n1u) 692 | -8/Storage | Core integrity fell below 20% 696 | -8/Storage | Destroyed by Y-45 Defender with Heavy Assault Rifle Last Messages --------------- H-55 Commando destroyed. G-47 Trooper destroyed. K-01 Serf collects debris. U-05 Engineer lays Concrete. U-05 Engineer builds a Wall. Destroyed Lgt. Nuclear Core. U-05 Engineer builds a Wall. The unstable cave ceiling collapses. K-01 Serf collects debris. U-05 Engineer builds a Wall. The unstable cave ceiling collapses. G-47 Trooper destroyed. K-01 Serf collects debris. Rocket Launcher destroyed. The unstable cave ceiling collapses. K-01 Serf collects debris. The unstable cave ceiling collapses. U-05 Engineer lays Concrete. U-05 Engineer builds a Wall. The unstable cave ceiling collapses. Map ----- +----------------------------------------------------+ | | | | | | | | | | | | | | | | | ?????????????????????????????????????????????????? | | ?????????????????????????????????????????????????? | | ?????????????????????????????????????????????????? | | ?????????????????????????????????????????????????? | | ?????????????????????????????????????????????????? | | ?????????????????????????????????????????????????? | | ?????????????????????????????????????????????????? | | ?????????????????????????????????????????????????? | | ??????????????????????###+###????????????????????? | | ??????????????????????? ????????????????????? | | ??????????????????????? ?????????????????????? | | ??????????????????????? w?????????????????????? | | ???????????????????????# k#?????????????????????? | | ???????????????????????# #?????????????????????? | | ???????????????????????# #?????????????????????? | | ???????????????????????# #?????????????????????? | | ???????????????????????# #?????????????????????? | | ???????????????????????# @ #?????????????????????? | | ???????????????????????# #?????????????????????? | | ???????????????????????# #?????????????????????? | | ???????????????????????# #?????????????????????? | | ???????????????????????# #?????????????????????? | | ???????????????????????# ###########???????????? | | ???????????????????????# # #???????????? | | ?????????????????????### b #???????????? | | ????????????????????# #???????????? | | ????????????????????# # #???????????? | | ????????????????????# # g #???????????? | | ???????????????????# ! ##??????????? | | ???????????????????## # YY% % % ##??????????? | | ????????????????????## Y # ##??????????? | | ?????????????????????### u# # #??????????? | | ???????????????????????#Y ## #######??????????? | | ??????????????#####????# # #???????????? | | ??????????????# #????# # #???????????? | | ??????????????# #????# # #???????????? | | ??????????????# #????# # #???????????? | | ??????????????# #????# + """ """ #???????????? | | ??????????????# #????# # """ """ #???????????? | | ??????????????# #????# # """ """ ##??????????? | | ??????????????# #????# # #??????????? | | ??????????????# #????# ####+#######??????????? | +----------------------------------------------------+ Best States ------------- Heat Dissipation 38 Energy Generation 10 Energy Capacity 250 Matter Stores 300 Matter Capacity 300 Sight Range 16 Terrain Scan Range 16 Terrain Scan Density 10 Armor Coverage 150 Evasion (%) 63 Recoil Reduction 1 Item Schematics ----------------- None Robot Schematics ------------------ None Fabricated ------------ Nothing Alien Tech Used ----------------- None Achievements -------------- None Challenges ------------ None Game ------ Seed MolecularNetworkFilter Manual? 0 Play Time 00:30:17 Cumulative 99.4 hours Start 2019.10.28 @ 07:06:27 End 2019.10.28 @ 19:31:17 Sessions 1 Manual Loads 0 Difficulty Rogue Special Mode None Game No. 47 Rogue 47 Adventurer 0 Explorer 0 Win Type - Total 0 Types 0/0/0/0/0/0/0 Lore% 26 Gallery% 31 Achievement% 17 Wizard Run 0 Options --------- ASCII 0 Keyboard 0 Movement Numpad Keybinds 0 Fullscreen 1 Font 18/SmallcapsGlow Map View 76x50 Tactical HUD 0 Map Filters NONE Filters NONE Steam 1 RUN: d778f32d-604a-43be-95af-ef1f924eaa24